[Event "FIDE Women's Grand Swiss 2023"]
[Site "Villa Marina, Douglas, Isle of Man, Isle Of Man"]
[Date "2023.10.29"]
[Round "5.14"]
[White "Savitha, Shri B"]
[Black "Narva, Mai"]
[Result "1/2-1/2"]
[TimeControl "40/90 + 30 + 30s/move"]
[WhiteFideId "35061887"]
[BlackFideId "4500512"]
[WhiteElo "2375"]
[BlackElo "2399"]

1. e4 {[%clk 01:30:45]} {[%emt 00:00:14]} c5 {[%clk 01:30:48]} {[%emt
00:00:12]} 2. Nf3 {[%clk 01:30:58]} {[%emt 00:00:16]} Nc6 {[%clk 01:31:06]}
{[%emt 00:00:13]} 3. d4 {[%clk 01:31:23]} {[%emt 00:00:06]} cxd4 {[%clk
01:31:27]} {[%emt 00:00:09]} 4. Nxd4 {[%clk 01:31:49]} {[%emt 00:00:04]} Nf6
{[%clk 01:31:43]} {[%emt 00:00:13]} 5. Nc3 {[%clk 01:32:01]} {[%emt 00:00:18]}
e5 {[%clk 01:32:01]} {[%emt 00:00:12]} 6. Ndb5 {[%clk 01:32:21]} {[%emt
00:00:10]} d6 {[%clk 01:32:22]} {[%emt 00:00:09]} 7. Nd5 {[%clk 01:32:38]}
{[%emt 00:00:14]} Nxd5 {[%clk 01:32:41]} {[%emt 00:00:11]} 8. exd5 {[%clk
01:33:04]} {[%emt 00:00:05]} Nb8 {[%clk 01:32:50]} {[%emt 00:00:20]} 9. Qf3
{[%clk 01:33:16]} {[%emt 00:00:18]} a6 {[%clk 01:22:50]} {[%emt 00:10:30]} 10.
Qa3 {[%clk 01:33:06]} {[%emt 00:00:40]} b6 {[%clk 01:12:07]} {[%emt 00:11:13]}
11. c4 {[%clk 01:27:08]} {[%emt 00:06:29]} Be7 {[%clk 01:06:46]} {[%emt
00:05:50]} 12. Bg5 {[%clk 01:22:28]} {[%emt 00:05:11]} f6 {[%clk 00:59:38]}
{[%emt 00:07:38]} 13. Bd2 {[%clk 01:18:41]} {[%emt 00:04:17]} Bb7 {[%clk
00:57:54]} {[%emt 00:02:13]} 14. Nc3 {[%clk 01:15:56]} {[%emt 00:03:15]} f5
{[%clk 00:52:06]} {[%emt 00:06:17]} 15. Be2 {[%clk 01:03:25]} {[%emt 00:13:01]}
O-O {[%clk 00:50:36]} {[%emt 00:02:00]} 16. O-O {[%clk 00:52:30]} {[%emt
00:11:25]} Nd7 {[%clk 00:47:49]} {[%emt 00:03:17]} 17. f4 {[%clk 00:52:26]}
{[%emt 00:00:35]} Rc8 {[%clk 00:39:56]} {[%emt 00:08:22]} 18. Rac1 {[%clk
00:49:13]} {[%emt 00:03:44]} Kh8 {[%clk 00:32:47]} {[%emt 00:07:39]} 19. b4
{[%clk 00:48:46]} {[%emt 00:00:58]} Bf6 {[%clk 00:25:36]} {[%emt 00:07:41]} 20.
Kh1 {[%clk 00:44:02]} {[%emt 00:05:15]} Re8 {[%clk 00:22:54]} {[%emt 00:03:10]}
21. Bd3 {[%clk 00:39:23]} {[%emt 00:05:10]} g6 {[%clk 00:16:06]} {[%emt
00:07:18]} 22. Qb3 {[%clk 00:32:21]} {[%emt 00:07:33]} e4 {[%clk 00:14:07]}
{[%emt 00:02:29]} 23. Be2 {[%clk 00:32:11]} {[%emt 00:00:39]} e3 {[%clk
00:13:45]} {[%emt 00:00:52]} 24. Be1 {[%clk 00:32:35]} {[%emt 00:00:06]} Bg7
{[%clk 00:12:39]} {[%emt 00:01:35]} 25. Nd1 {[%clk 00:24:02]} {[%emt 00:09:04]}
Qe7 {[%clk 00:06:31]} {[%emt 00:06:37]} 26. Bc3 {[%clk 00:22:20]} {[%emt
00:02:13]} Nf6 {[%clk 00:06:47]} {[%emt 00:00:13]} 27. Rf3 {[%clk 00:14:13]}
{[%emt 00:08:37]} Ne4 {[%clk 00:05:30]} {[%emt 00:01:47]} 28. Bxg7+ {[%clk
00:12:46]} {[%emt 00:01:57]} Qxg7 {[%clk 00:05:51]} {[%emt 00:00:08]} 29. Qa3
{[%clk 00:10:06]} {[%emt 00:03:11]} Qd4 {[%clk 00:05:06]} {[%emt 00:01:14]} 30.
Kg1 {[%clk 00:06:33]} {[%emt 00:04:04]} Nd2 {[%clk 00:02:09]} {[%emt 00:03:28]}
31. Rxe3 {[%clk 00:06:16]} {[%emt 00:00:47]} b5 {[%clk 00:00:44]} {[%emt
00:01:54]} 32. Qc3 {[%clk 00:04:46]} {[%emt 00:02:00]} Qxc3 {[%clk 00:00:57]}
{[%emt 00:00:17]} 33. Rxe8+ {[%clk 00:05:14]} {[%emt 00:00:03]} Rxe8 {[%clk
00:01:21]} {[%emt 00:00:06]} 34. Nxc3 {[%clk 00:05:42]} {[%emt 00:00:02]} bxc4
{[%clk 00:00:57]} {[%emt 00:00:54]} 35. Kf2 {[%clk 00:03:18]} {[%emt 00:02:54]}
Kg7 {[%clk 00:01:05]} {[%emt 00:00:21]} 36. Rc2 {[%clk 00:02:47]} {[%emt
00:01:00]} Ne4+ {[%clk 00:01:06]} {[%emt 00:00:30]} 37. Nxe4 {[%clk 00:03:12]}
{[%emt 00:00:06]} fxe4 {[%clk 00:00:33]} {[%emt 00:01:02]} 38. Rxc4 {[%clk
00:02:28]} {[%emt 00:01:15]} e3+ {[%clk 00:00:34]} {[%emt 00:00:29]} 39. Kg3
{[%clk 00:02:44]} {[%emt 00:00:13]} Bxd5 {[%clk 00:00:48]} {[%emt 00:00:15]} 40.
Rd4 {[%clk 00:03:13]} {[%emt 00:00:01]} Bxa2 {[%clk 00:00:34]} {[%emt
00:00:45]} 41. Rxd6 {[%clk 00:03:33]} {[%emt 00:00:10]} Re4 {[%clk 00:20:48]}
{[%emt 00:10:16]} 42. Rxa6 {[%clk 00:30:12]} {[%emt 00:03:52]} Bc4 {[%clk
00:19:25]} {[%emt 00:01:52]} 43. Ra7+ {[%clk 00:22:43]} {[%emt 00:07:59]} Kf6
{[%clk 00:18:16]} {[%emt 00:01:38]} 44. Bxc4 {[%clk 00:18:32]} {[%emt
00:04:42]} Rxc4 {[%clk 00:18:40]} {[%emt 00:00:05]} 45. Ra6+ {[%clk 00:18:44]}
{[%emt 00:00:19]} Kf7 {[%clk 00:16:30]} {[%emt 00:02:39]} 46. Kf3 {[%clk
00:17:41]} {[%emt 00:01:34]} Rxb4 {[%clk 00:16:41]} {[%emt 00:00:19]} 47. Ra3
{[%clk 00:17:18]} {[%emt 00:00:53]} h5 {[%clk 00:14:43]} {[%emt 00:02:28]} 48.
Rxe3 {[%clk 00:16:49]} {[%emt 00:00:59]} Rb1 {[%clk 00:12:37]} {[%emt
00:02:36]} 49. Kg3 {[%clk 00:15:06]} {[%emt 00:02:13]} Kf6 {[%clk 00:12:50]}
{[%emt 00:00:17]} 50. Ra3 {[%clk 00:15:30]} {[%emt 00:00:07]} Rb4 {[%clk
00:12:12]} {[%emt 00:01:07]} 51. h3 {[%clk 00:14:36]} {[%emt 00:01:24]} Kf5
{[%clk 00:12:06]} {[%emt 00:00:36]} 52. Ra5+ {[%clk 00:13:44]} {[%emt
00:01:22]} Kf6 {[%clk 00:12:30]} {[%emt 00:00:05]} 53. Rg5 {[%clk 00:13:46]}
{[%emt 00:00:29]} Ra4 {[%clk 00:12:19]} {[%emt 00:00:41]} 54. Re5 {[%clk
00:13:02]} {[%emt 00:01:13]} Rb4 {[%clk 00:12:20]} {[%emt 00:00:29]} 55. Kf3
{[%clk 00:13:23]} {[%emt 00:00:10]} Rb3+ {[%clk 00:12:03]} {[%emt 00:00:47]} 56.
Re3 {[%clk 00:13:48]} {[%emt 00:00:05]} Rb1 {[%clk 00:12:10]} {[%emt 00:00:23]}
57. g3 {[%clk 00:12:26]} {[%emt 00:01:53]} Ra1 {[%clk 00:12:18]} {[%emt
00:00:22]} 58. Rb3 {[%clk 00:12:49]} {[%emt 00:00:06]} Rf1+ {[%clk 00:11:18]}
{[%emt 00:01:30]} 59. Kg2 {[%clk 00:12:53]} {[%emt 00:00:26]} Ra1 {[%clk
00:11:34]} {[%emt 00:00:14]} 60. g4 {[%clk 00:12:53]} {[%emt 00:00:31]} hxg4
{[%clk 00:11:35]} {[%emt 00:00:29]} 61. hxg4 {[%clk 00:13:22]} {[%emt
00:00:01]} Ra6 {[%clk 00:11:17]} {[%emt 00:00:47]} 62. Rb5 {[%clk 00:13:31]}
{[%emt 00:00:21]} Ra3 {[%clk 00:10:56]} {[%emt 00:00:50]} 63. Kf2 {[%clk
00:12:59]} {[%emt 00:01:02]} Rc3 {[%clk 00:11:05]} {[%emt 00:00:21]} 64. Re5
{[%clk 00:11:50]} {[%emt 00:01:39]} Ra3 {[%clk 00:10:26]} {[%emt 00:01:09]} 65.
Re3 {[%clk 00:11:28]} {[%emt 00:00:52]} Ra1 {[%clk 00:10:35]} {[%emt 00:00:22]}
66. Kg3 {[%clk 00:10:50]} {[%emt 00:01:08]} Rg1+ {[%clk 00:10:35]} {[%emt
00:00:29]} 67. Kh3 {[%clk 00:08:33]} {[%emt 00:02:47]} Rf1 {[%clk 00:10:42]}
{[%emt 00:00:23]} 68. Re4 {[%clk 00:08:47]} {[%emt 00:00:17]} Rh1+ {[%clk
00:08:46]} {[%emt 00:02:26]} 69. Kg2 {[%clk 00:09:00]} {[%emt 00:00:17]} Ra1
{[%clk 00:09:04]} {[%emt 00:00:12]} 70. Rb4 {[%clk 00:08:46]} {[%emt 00:00:44]}
Ra3 {[%clk 00:09:11]} {[%emt 00:00:23]} 71. Rb6+ {[%clk 00:09:11]} {[%emt
00:00:05]} Kf7 {[%clk 00:09:20]} {[%emt 00:00:20]} 72. Kf2 {[%clk 00:09:35]}
{[%emt 00:00:07]} Rc3 {[%clk 00:09:29]} {[%emt 00:00:21]} 73. g5 {[%clk
00:09:31]} {[%emt 00:00:34]} Ra3 {[%clk 00:09:42]} {[%emt 00:00:17]} 74. Rf6+
{[%clk 00:09:46]} {[%emt 00:00:16]} Kg7 {[%clk 00:10:07]} {[%emt 00:00:05]} 75.
Re6 {[%clk 00:10:12]} {[%emt 00:00:04]} Kf7 {[%clk 00:10:10]} {[%emt 00:00:27]}
76. Re3 {[%clk 00:10:29]} {[%emt 00:00:14]} Ra4 {[%clk 00:09:27]} {[%emt
00:01:13]} 77. Kf3 {[%clk 00:10:31]} {[%emt 00:00:28]} Rb4 {[%clk 00:09:38]}
{[%emt 00:00:19]} 78. Ra3 {[%clk 00:10:57]} {[%emt 00:00:05]} Rc4 {[%clk
00:09:45]} {[%emt 00:00:23]} 79. Ra7+ {[%clk 00:11:15]} {[%emt 00:00:12]} Kf8
{[%clk 00:09:43]} {[%emt 00:00:32]} 80. Rd7 {[%clk 00:11:25]} {[%emt 00:00:21]}
Ra4 {[%clk 00:09:10]} {[%emt 00:01:02]} 81. Ke3 {[%clk 00:11:06]} {[%emt
00:00:50]} Rb4 {[%clk 00:09:00]} {[%emt 00:00:41]} 82. Rd4 {[%clk 00:11:02]}
{[%emt 00:00:33]} Rb1 {[%clk 00:07:59]} {[%emt 00:01:31]} 83. Ke4 {[%clk
00:10:35]} {[%emt 00:00:57]} Ke7 {[%clk 00:08:10]} {[%emt 00:00:18]} 84. Kd5
{[%clk 00:10:30]} {[%emt 00:00:36]} Rb5+ {[%clk 00:07:30]} {[%emt 00:01:10]} 85.
Kc6 {[%clk 00:10:52]} {[%emt 00:00:08]} Ra5 {[%clk 00:07:40]} {[%emt 00:00:21]}
86. Rd7+ {[%clk 00:10:17]} {[%emt 00:01:05]} Ke8 {[%clk 00:04:46]} {[%emt
00:03:23]} 87. Rd6 {[%clk 00:07:51]} {[%emt 00:02:56]} Ke7 {[%clk 00:04:41]}
{[%emt 00:00:35]} 88. Rd7+ {[%clk 00:07:33]} {[%emt 00:00:48]} Ke6 {[%clk
00:04:10]} {[%emt 00:01:00]} 89. Rg7 {[%clk 00:07:28]} {[%emt 00:00:35]} Rf5
{[%clk 00:03:56]} {[%emt 00:00:44]} 90. Rxg6 {[%clk 00:05:56]} {[%emt
00:02:02]} Kf7 {[%clk 00:04:14]} {[%emt 00:00:11]} 1/2-1/2

[Event "FIDE Women's Grand Swiss 2023"]
[Site "Villa Marina, Douglas, Isle of Man, Isle Of Man"]
[Date "2023.10.29"]
[Round "5.15"]
[White "Hoang, Thanh Trang"]
[Black "Aulia, Medina Warda"]
[Result "1-0"]
[TimeControl "40/90 + 30 + 30s/move"]
[WhiteFideId "12400149"]
[BlackFideId "7101570"]
[WhiteElo "2398"]
[BlackElo "2362"]

1. d4 {[%clk 01:30:52]} {[%emt 00:00:06]} d5 {[%clk 01:30:55]} {[%emt
00:00:05]} 2. c4 {[%clk 01:30:58]} {[%emt 00:00:23]} e6 {[%clk 01:31:19]}
{[%emt 00:00:06]} 3. Nf3 {[%clk 01:31:00]} {[%emt 00:00:27]} Nf6 {[%clk
01:31:44]} {[%emt 00:00:06]} 4. g3 {[%clk 01:30:59]} {[%emt 00:00:31]} Bb4+
{[%clk 01:31:55]} {[%emt 00:00:20]} 5. Bd2 {[%clk 01:31:03]} {[%emt 00:00:25]}
Be7 {[%clk 01:32:11]} {[%emt 00:00:14]} 6. Bg2 {[%clk 01:30:51]} {[%emt
00:00:41]} c6 {[%clk 01:32:28]} {[%emt 00:00:14]} 7. Qc2 {[%clk 01:30:11]}
{[%emt 00:01:09]} Ne4 {[%clk 01:32:45]} {[%emt 00:00:14]} 8. O-O {[%clk
01:27:38]} {[%emt 00:03:03]} Nxd2 {[%clk 01:31:32]} {[%emt 00:01:43]} 9. Nbxd2
{[%clk 01:26:46]} {[%emt 00:01:21]} O-O {[%clk 01:31:50]} {[%emt 00:00:13]} 10.
e4 {[%clk 01:24:17]} {[%emt 00:02:58]} dxc4 {[%clk 01:28:39]} {[%emt 00:03:42]}
11. Nxc4 {[%clk 01:23:23]} {[%emt 00:01:24]} c5 {[%clk 01:27:58]} {[%emt
00:01:11]} 12. Rfd1 {[%clk 01:19:50]} {[%emt 00:04:02]} cxd4 {[%clk 01:28:13]}
{[%emt 00:00:15]} 13. Nxd4 {[%clk 01:19:03]} {[%emt 00:01:17]} Qc7 {[%clk
01:26:29]} {[%emt 00:02:15]} 14. e5 {[%clk 01:09:08]} {[%emt 00:10:25]} Nd7
{[%clk 01:22:17]} {[%emt 00:04:42]} 15. Qe2 {[%clk 01:03:45]} {[%emt 00:05:52]}
Nb6 {[%clk 01:18:00]} {[%emt 00:04:49]} 16. Nd6 {[%clk 00:53:08]} {[%emt
00:11:07]} a6 {[%clk 01:13:02]} {[%emt 00:05:29]} 17. Rac1 {[%clk 00:51:54]}
{[%emt 00:01:42]} Qb8 {[%clk 01:13:28]} {[%emt 00:00:04]} 18. Nb3 {[%clk
00:47:42]} {[%emt 00:04:42]} Rd8 {[%clk 01:12:44]} {[%emt 00:01:14]} 19. Qe3
{[%clk 00:41:44]} {[%emt 00:06:27]} Nd5 {[%clk 01:09:57]} {[%emt 00:03:18]} 20.
Bxd5 {[%clk 00:41:33]} {[%emt 00:00:41]} Bxd6 {[%clk 01:10:06]} {[%emt
00:00:21]} 21. Be4 {[%clk 00:32:56]} {[%emt 00:09:06]} Be7 {[%clk 01:09:13]}
{[%emt 00:01:23]} 22. Rxd8+ {[%clk 00:32:15]} {[%emt 00:01:11]} Bxd8 {[%clk
01:09:40]} {[%emt 00:00:04]} 23. Bxh7+ {[%clk 00:31:44]} {[%emt 00:01:01]} Kf8
{[%clk 01:07:07]} {[%emt 00:03:04]} 24. Qd4 {[%clk 00:30:27]} {[%emt 00:01:47]}
Be7 {[%clk 01:06:16]} {[%emt 00:01:21]} 25. Be4 {[%clk 00:30:02]} {[%emt
00:00:54]} a5 {[%clk 01:04:24]} {[%emt 00:02:23]} 26. a4 {[%clk 00:26:27]}
{[%emt 00:04:05]} g5 {[%clk 00:59:27]} {[%emt 00:05:27]} 27. Nd2 {[%clk
00:21:49]} {[%emt 00:05:07]} Ra6 {[%clk 00:58:20]} {[%emt 00:01:38]} 28. Rc3
{[%clk 00:20:37]} {[%emt 00:01:41]} Bb4 {[%clk 00:57:27]} {[%emt 00:01:23]} 29.
Qd8+ {[%clk 00:20:57]} {[%emt 00:00:11]} 1-0

[Event "FIDE Women's Grand Swiss 2023"]
[Site "Villa Marina, Douglas, Isle of Man, Isle Of Man"]
[Date "2023.10.29"]
[Round "5.16"]
[White "Terbe, Julianna"]
[Black "Fataliyeva, Ulviyya"]
[Result "0-1"]
[TimeControl "40/90 + 30 + 30s/move"]
[WhiteFideId "708780"]
[BlackFideId "13403052"]
[WhiteElo "2266"]
[BlackElo "2393"]

1. Nf3 {[%clk 01:30:57]} {[%emt 00:00:02]} d5 {[%clk 01:30:56]} {[%emt
00:00:05]} 2. d4 {[%clk 01:31:17]} {[%emt 00:00:09]} Nf6 {[%clk 01:31:20]}
{[%emt 00:00:06]} 3. g3 {[%clk 01:31:42]} {[%emt 00:00:06]} e6 {[%clk
01:31:45]} {[%emt 00:00:04]} 4. Bg2 {[%clk 01:32:06]} {[%emt 00:00:06]} Be7
{[%clk 01:32:10]} {[%emt 00:00:05]} 5. c4 {[%clk 01:32:31]} {[%emt 00:00:05]}
O-O {[%clk 01:32:34]} {[%emt 00:00:06]} 6. Nc3 {[%clk 01:32:56]} {[%emt
00:00:05]} c6 {[%clk 01:32:04]} {[%emt 00:01:00]} 7. O-O {[%clk 01:32:46]}
{[%emt 00:00:40]} Nbd7 {[%clk 01:31:19]} {[%emt 00:01:15]} 8. Qd3 {[%clk
01:33:04]} {[%emt 00:00:12]} b6 {[%clk 01:28:08]} {[%emt 00:03:41]} 9. e4
{[%clk 01:33:27]} {[%emt 00:00:07]} Ba6 {[%clk 01:28:12]} {[%emt 00:00:26]} 10.
b3 {[%clk 01:32:13]} {[%emt 00:01:45]} Rc8 {[%clk 01:23:29]} {[%emt 00:05:12]}
11. Bb2 {[%clk 01:22:11]} {[%emt 00:10:32]} c5 {[%clk 01:02:01]} {[%emt
00:21:58]} 12. exd5 {[%clk 01:14:50]} {[%emt 00:07:51]} exd5 {[%clk 01:01:32]}
{[%emt 00:00:58]} 13. Nb5 {[%clk 01:08:48]} {[%emt 00:06:33]} Bxb5 {[%clk
00:47:51]} {[%emt 00:14:11]} 14. cxb5 {[%clk 01:09:11]} {[%emt 00:00:07]} c4
{[%clk 00:48:17]} {[%emt 00:00:04]} 15. Qc2 {[%clk 01:09:30]} {[%emt 00:00:11]}
Ne4 {[%clk 00:43:11]} {[%emt 00:05:36]} 16. bxc4 {[%clk 01:04:17]} {[%emt
00:05:43]} Nd6 {[%clk 00:43:18]} {[%emt 00:00:23]} 17. a4 {[%clk 00:58:20]}
{[%emt 00:06:27]} Nxc4 {[%clk 00:42:38]} {[%emt 00:01:10]} 18. Qb3 {[%clk
00:51:31]} {[%emt 00:07:20]} Nf6 {[%clk 00:41:20]} {[%emt 00:01:48]} 19. Rfe1
{[%clk 00:50:51]} {[%emt 00:01:10]} Qd6 {[%clk 00:41:15]} {[%emt 00:00:34]} 20.
Bc3 {[%clk 00:40:44]} {[%emt 00:10:38]} Ne4 {[%clk 00:39:35]} {[%emt 00:02:09]}
21. Ne5 {[%clk 00:34:42]} {[%emt 00:06:32]} Nxe5 {[%clk 00:36:19]} {[%emt
00:03:45]} 22. dxe5 {[%clk 00:34:53]} {[%emt 00:00:20]} Qc5 {[%clk 00:36:35]}
{[%emt 00:00:14]} 23. Bxe4 {[%clk 00:35:19]} {[%emt 00:00:05]} dxe4 {[%clk
00:36:57]} {[%emt 00:00:07]} 24. Bb2 {[%clk 00:29:35]} {[%emt 00:06:14]} Qc4
{[%clk 00:27:24]} {[%emt 00:10:02]} 25. Qe3 {[%clk 00:22:29]} {[%emt 00:07:37]}
Rfd8 {[%clk 00:16:55]} {[%emt 00:10:59]} 26. Qxe4 {[%clk 00:19:58]} {[%emt
00:03:02]} Qb3 {[%clk 00:17:08]} {[%emt 00:00:16]} 27. Re2 {[%clk 00:17:33]}
{[%emt 00:02:56]} Rc4 {[%clk 00:17:07]} {[%emt 00:00:30]} 28. Qb7 {[%clk
00:16:02]} {[%emt 00:02:01]} Bf8 {[%clk 00:16:39]} {[%emt 00:00:58]} 29. e6
{[%clk 00:12:55]} {[%emt 00:03:37]} fxe6 {[%clk 00:16:23]} {[%emt 00:00:46]} 30.
Rae1 {[%clk 00:12:10]} {[%emt 00:01:15]} Rc2 {[%clk 00:10:38]} {[%emt
00:06:15]} 31. Rxc2 {[%clk 00:11:02]} {[%emt 00:01:38]} Qxc2 {[%clk 00:11:06]}
{[%emt 00:00:02]} 32. Be5 {[%clk 00:10:35]} {[%emt 00:00:57]} Qxa4 {[%clk
00:09:52]} {[%emt 00:01:43]} 33. Qc6 {[%clk 00:07:46]} {[%emt 00:03:20]} Qb3
{[%clk 00:09:38]} {[%emt 00:00:44]} 34. h4 {[%clk 00:06:04]} {[%emt 00:02:13]}
Rd2 {[%clk 00:06:46]} {[%emt 00:03:21]} 35. Bf4 {[%clk 00:02:52]} {[%emt
00:03:42]} Rd1 {[%clk 00:05:05]} {[%emt 00:02:11]} 36. Rxd1 {[%clk 00:03:19]}
{[%emt 00:00:04]} Qxd1+ {[%clk 00:05:30]} {[%emt 00:00:04]} 37. Kg2 {[%clk
00:01:28]} {[%emt 00:02:21]} Qd5+ {[%clk 00:04:02]} {[%emt 00:01:58]} 38. Qxd5
{[%clk 00:01:55]} {[%emt 00:00:04]} exd5 {[%clk 00:04:28]} {[%emt 00:00:03]} 39.
Bb8 {[%clk 00:02:21]} {[%emt 00:00:03]} Kf7 {[%clk 00:04:38]} {[%emt 00:00:20]}
40. Bxa7 {[%clk 00:02:13]} {[%emt 00:00:39]} Bc5 {[%clk 00:05:07]} {[%emt
00:00:01]} 41. f4 {[%clk 00:25:35]} {[%emt 00:07:08]} h5 {[%clk 00:28:17]}
{[%emt 00:07:20]} 42. Kf3 {[%clk 00:21:09]} {[%emt 00:04:56]} Ke6 {[%clk
00:28:39]} {[%emt 00:00:08]} 43. g4 {[%clk 00:20:41]} {[%emt 00:00:58]} g6
{[%clk 00:23:29]} {[%emt 00:05:40]} 44. Bb8 {[%clk 00:16:35]} {[%emt 00:04:36]}
hxg4+ {[%clk 00:21:58]} {[%emt 00:02:01]} 45. Kxg4 {[%clk 00:17:01]} {[%emt
00:00:04]} d4 {[%clk 00:22:08]} {[%emt 00:00:19]} 46. Kf3 {[%clk 00:16:10]}
{[%emt 00:01:22]} d3 {[%clk 00:21:45]} {[%emt 00:00:52]} 47. Be5 {[%clk
00:13:12]} {[%emt 00:03:28]} Kd5 {[%clk 00:21:16]} {[%emt 00:01:00]} 48. Bg7
{[%clk 00:13:23]} {[%emt 00:00:19]} Kc4 {[%clk 00:19:58]} {[%emt 00:01:48]} 49.
f5 {[%clk 00:13:37]} {[%emt 00:00:16]} gxf5 {[%clk 00:20:21]} {[%emt 00:00:06]}
50. h5 {[%clk 00:14:04]} {[%emt 00:00:04]} Kb3 {[%clk 00:20:15]} {[%emt
00:00:36]} 51. h6 {[%clk 00:12:38]} {[%emt 00:01:56]} d2 {[%clk 00:20:40]}
{[%emt 00:00:05]} 52. Ke2 {[%clk 00:13:05]} {[%emt 00:00:02]} Kc2 {[%clk
00:21:05]} {[%emt 00:00:05]} 0-1

[Event "FIDE Women's Grand Swiss 2023"]
[Site "Villa Marina, Douglas, Isle of Man, Isle Of Man"]
[Date "2023.10.29"]
[Round "5.17"]
[White "Kosteniuk, Alexandra"]
[Black "Vantika, Agrawal"]
[Result "1/2-1/2"]
[TimeControl "40/90 + 30 + 30s/move"]
[WhiteFideId "4128125"]
[BlackFideId "25050389"]
[WhiteElo "2523"]
[BlackElo "2435"]

1. e4 {[%clk 01:30:56]} {[%emt 00:00:03]} c5 {[%clk 01:30:45]} {[%emt
00:00:16]} 2. Nf3 {[%clk 01:31:14]} {[%emt 00:00:12]} Nc6 {[%clk 01:31:09]}
{[%emt 00:00:06]} 3. Bb5 {[%clk 01:31:34]} {[%emt 00:00:09]} g6 {[%clk
01:31:20]} {[%emt 00:00:20]} 4. O-O {[%clk 01:31:50]} {[%emt 00:00:14]} Bg7
{[%clk 01:31:43]} {[%emt 00:00:07]} 5. Re1 {[%clk 01:32:00]} {[%emt 00:00:19]}
e5 {[%clk 01:31:17]} {[%emt 00:00:57]} 6. Bxc6 {[%clk 01:31:26]} {[%emt
00:01:04]} dxc6 {[%clk 01:31:39]} {[%emt 00:00:09]} 7. a4 {[%clk 01:30:29]}
{[%emt 00:01:27]} Nh6 {[%clk 01:20:09]} {[%emt 00:12:00]} 8. d3 {[%clk
01:15:19]} {[%emt 00:15:40]} f6 {[%clk 01:16:11]} {[%emt 00:04:28]} 9. Be3
{[%clk 01:15:36]} {[%emt 00:00:12]} Qe7 {[%clk 01:15:40]} {[%emt 00:01:01]} 10.
Qc1 {[%clk 01:15:53]} {[%emt 00:00:13]} Nf7 {[%clk 01:15:00]} {[%emt 00:01:10]}
11. a5 {[%clk 01:11:47]} {[%emt 00:04:36]} O-O {[%clk 01:12:17]} {[%emt
00:03:14]} 12. Nc3 {[%clk 01:05:39]} {[%emt 00:06:37]} Nd8 {[%clk 01:04:54]}
{[%emt 00:07:54]} 13. Na4 {[%clk 00:57:50]} {[%emt 00:08:19]} Ne6 {[%clk
01:04:49]} {[%emt 00:00:34]} 14. Nd2 {[%clk 00:58:11]} {[%emt 00:00:09]} f5
{[%clk 00:47:39]} {[%emt 00:17:41]} 15. exf5 {[%clk 00:58:11]} {[%emt
00:00:29]} gxf5 {[%clk 00:47:53]} {[%emt 00:00:16]} 16. f4 {[%clk 00:57:31]}
{[%emt 00:01:10]} Bd7 {[%clk 00:32:19]} {[%emt 00:16:04]} 17. c3 {[%clk
00:39:00]} {[%emt 00:19:02]} Be8 {[%clk 00:22:57]} {[%emt 00:09:52]} 18. Qc2
{[%clk 00:31:30]} {[%emt 00:07:59]} Rd8 {[%clk 00:19:29]} {[%emt 00:03:58]} 19.
Nc4 {[%clk 00:30:28]} {[%emt 00:01:33]} Bg6 {[%clk 00:17:34]} {[%emt 00:02:24]}
20. Rad1 {[%clk 00:29:55]} {[%emt 00:01:03]} e4 {[%clk 00:12:14]} {[%emt
00:05:50]} 21. dxe4 {[%clk 00:27:46]} {[%emt 00:02:39]} fxe4 {[%clk 00:10:56]}
{[%emt 00:01:49]} 22. Rxd8 {[%clk 00:24:30]} {[%emt 00:03:45]} Rxd8 {[%clk
00:11:13]} {[%emt 00:00:13]} 23. Qf2 {[%clk 00:21:55]} {[%emt 00:03:05]} Nd4
{[%clk 00:07:02]} {[%emt 00:04:41]} 24. b4 {[%clk 00:20:59]} {[%emt 00:01:26]}
Qf7 {[%clk 00:02:27]} {[%emt 00:05:04]} 25. Nxc5 {[%clk 00:10:23]} {[%emt
00:11:07]} Qxc4 {[%clk 00:02:05]} {[%emt 00:00:52]} 26. cxd4 {[%clk 00:10:49]}
{[%emt 00:00:04]} b6 {[%clk 00:00:55]} {[%emt 00:01:40]} 27. axb6 {[%clk
00:10:53]} {[%emt 00:00:26]} axb6 {[%clk 00:01:22]} {[%emt 00:00:04]} 28. f5
{[%clk 00:11:11]} {[%emt 00:00:11]} Rf8 {[%clk 00:00:47]} {[%emt 00:01:05]} 29.
Nxe4 {[%clk 00:11:03]} {[%emt 00:00:38]} Bxf5 {[%clk 00:00:37]} {[%emt
00:00:40]} 30. Nd6 {[%clk 00:07:51]} {[%emt 00:03:42]} Qxb4 {[%clk 00:00:45]}
{[%emt 00:00:22]} 31. Nxf5 {[%clk 00:04:16]} {[%emt 00:04:05]} Rxf5 {[%clk
00:01:10]} {[%emt 00:00:05]} 32. Qa2+ {[%clk 00:04:44]} {[%emt 00:00:02]} Kh8
{[%clk 00:01:15]} {[%emt 00:00:26]} 33. Rf1 {[%clk 00:04:06]} {[%emt 00:01:07]}
Rxf1+ {[%clk 00:01:09]} {[%emt 00:00:36]} 34. Kxf1 {[%clk 00:04:35]} Qf8+
{[%clk 00:00:34]} {[%emt 00:01:05]} 35. Ke2 {[%clk 00:04:51]} {[%emt 00:00:14]}
Qe8 {[%clk 00:00:43]} {[%emt 00:00:21]} 36. Kd2 {[%clk 00:04:46]} {[%emt
00:00:35]} b5 {[%clk 00:00:47]} {[%emt 00:00:26]} 37. Qc2 {[%clk 00:01:53]}
{[%emt 00:03:23]} 1/2-1/2